bitfinex/quotes_BTCUSD_20251027
["timestamp","ask_amount","ask_price","bid_price","bid_amount"]
[1761549814447,0.00020445,115980.0,115970.0,0.94023354]
[1761549814615,0.00020445,115980.0,115970.0,1.09295354]
[1761549817022,0.00020445,115980.0,115970.0,0.66509059]
[1761549817476,0.09002346,115980.0,115970.0,1.09295354]
[1761549818796,0.09402346,115980.0,115970.0,1.09295354]
[1761549823649,0.09402346,115980.0,115970.0,0.51237059]
[1761549823851,0.27586933,115980.0,115970.0,0.94023354]
[1761549824274,0.26646698,115980.0,115970.0,0.76786295]
[1761549824476,0.26646698,115980.0,115960.0,0.75301621]
[1761549824729,0.17247326,115960.0,115950.0,0.67289376]
[1761549824941,0.17247326,115960.0,115950.0,0.4917892]
[1761549824942,0.27954714,115960.0,115950.0,0.4917892]
[1761549825152,0.29847455,115960.0,115950.0,0.4917892]
[1761549825370,0.36083584,115960.0,115950.0,0.4917892]
[1761549825588,1.12869879,115960.0,115950.0,0.4917892]
[1761549825809,1.13869878,115960.0,115950.0,0.4917892]
[1761549826241,0.17254766,115910.0,115900.0,0.0765054]
[1761549826477,0.17256255,115900.0,115890.0,0.68771124]
[1761549826694,0.08981901,115900.0,115890.0,0.60044039]
[1761549827123,0.26238156,115900.0,115880.0,0.76171563]
[1761549827295,0.10707388,115890.0,115880.0,0.94903563]
[1761549827700,0.10707388,115890.0,115880.0,0.60903563]
[1761549827954,0.08981901,115890.0,115880.0,0.60903563]
[1761549828152,0.08981901,115890.0,115880.0,0.18117268]
[1761549828273,0.08981901,115890.0,115880.0,0.94903563]
[1761549829114,0.09081901,115890.0,115880.0,0.94903563]
[1761549829517,0.09081901,115890.0,115880.0,0.52117268]
[1761549829741,0.09081901,115890.0,115880.0,0.94903563]
[1761549830241,0.09081901,115890.0,115880.0,1.37689858]
[1761549830462,0.09281901,115890.0,115880.0,1.37689858]
[1761549830866,0.09281901,115890.0,115880.0,0.94903563]
[1761549833373,0.09281901,115890.0,115880.0,1.37689858]
[1761549836420,0.003,115890.0,115880.0,1.43205858]
[1761549837024,0.23206074,115930.0,115910.0,0.17253943]
[1761549837225,0.23206074,115930.0,115910.0,0.60040238]
[1761549837226,0.08981901,115920.0,115910.0,0.60040238]
[1761549837568,0.26235179,115920.0,115910.0,0.60040238]
[1761549837769,0.26235179,115920.0,115910.0,0.65457559]
[1761549838298,0.26235179,115920.0,115910.0,0.48203616]
[1761549839838,0.26735179,115920.0,115910.0,0.48203616]
[1761549839999,0.31816442,115920.0,115910.0,0.48203616]
[1761549840206,0.31816442,115920.0,115910.0,0.65458382]
[1761549840410,0.14563164,115920.0,115910.0,0.65458382]
[1761549840596,0.09581901,115920.0,115910.0,0.17254766]
[1761549841157,0.09581901,115920.0,115910.0,0.65458382]
[1761549843539,0.28560666,115920.0,115910.0,0.48203616]
[1761549843744,0.17254766,115910.0,115890.0,0.18117942]
[1761549843947,0.17254766,115910.0,115890.0,0.66321558]
[1761549843948,0.10707388,115900.0,115890.0,0.66321558]
[1761549844154,0.46031858,115900.0,115880.0,0.18117268]
[1761549844310,0.44306371,115900.0,115890.0,0.00122778]
[1761549844692,0.96128215,115900.0,115890.0,0.00122778]
[1761549844984,0.49525218,115900.0,115890.0,0.00122778]
[1761549845354,1.17456833,115900.0,115890.0,0.00122778]
[1761549845552,1.32728833,115900.0,115890.0,0.00122778]
[1761549845934,1.32728833,115900.0,115890.0,0.00422778]
[1761549846193,0.84525217,115900.0,115890.0,0.00122778]
[1761549846558,0.87168555,115900.0,115890.0,0.00122778]
[1761549846741,1.35372171,115900.0,115890.0,0.00122778]
[1761549846873,0.7742005,115900.0,115890.0,0.00122778]
[1761549847083,1.44768328,115900.0,115890.0,0.00122778]
[1761549847282,1.47611488,115900.0,115890.0,0.00122778]
[1761549847537,0.99407872,115900.0,115890.0,0.00122778]
[1761549847745,1.45102323,115900.0,115890.0,0.00122778]
[1761549850762,0.92891873,115900.0,115890.0,0.00122778]
[1761549850881,0.96568712,115900.0,115890.0,0.00122778]
[1761549851510,0.75776712,115900.0,115890.0,0.00122778]
[1761549851952,0.58950484,115900.0,115890.0,0.00122778]
[1761549852154,0.58950484,115900.0,115890.0,0.17380522]
[1761549852155,0.34358775,115900.0,115890.0,0.17380522]
[1761549852358,0.49630775,115900.0,115890.0,0.17380522]
[1761549853193,0.3237452,115900.0,115890.0,0.17380522]
[1761549853416,0.37426486,115900.0,115890.0,0.17380522]
[1761549853567,0.54682741,115900.0,115890.0,0.17380522]
[1761549854807,0.54682741,115900.0,115890.0,0.00122778]
[1761549855818,0.37426486,115900.0,115890.0,0.17380522]
[1761549856063,0.49633539,115900.0,115890.0,0.17380522]
[1761549856197,0.34228124,115900.0,115890.0,0.17380522]
[1761549856397,0.51484379,115900.0,115890.0,0.17380522]
[1761549858817,0.28708124,115900.0,115890.0,0.63074973]
[1761549859673,0.28708124,115900.0,115890.0,0.17380522]
[1761549860430,0.27104741,115900.0,115890.0,0.17380522]
[1761549861454,0.49115489,115900.0,115890.0,0.17380522]
[1761549862184,0.50726402,115900.0,115890.0,0.17380522]
[1761549863126,0.53049084,115900.0,115890.0,0.17380522]
[1761549863535,0.31038336,115900.0,115890.0,0.17380522]
[1761549864581,0.48294591,115900.0,115890.0,0.17380522]
[1761549865522,0.31040139,115900.0,115890.0,0.17380522]
[1761549865733,0.31040139,115900.0,115890.0,0.64800747]
[1761549865954,0.28717457,115900.0,115890.0,0.63074973]
[1761549866151,0.13445457,115900.0,115890.0,0.63074973]
[1761549866351,0.11832741,115900.0,115890.0,0.63074973]
[1761549868139,0.11832741,115900.0,115890.0,0.17380522]
[1761549868341,0.0285084,115900.0,115890.0,1.63561424]
[1761549868545,0.01,115900.0,115890.0,1.17866973]
[1761549869165,0.008,115900.0,115890.0,1.17866973]
[1761549869373,0.04180399,115920.0,115910.0,0.17254766]
[1761549869572,0.16878318,115920.0,115910.0,0.17254766]
[1761549869768,0.16878318,115920.0,115910.0,0.65544317]
[1761549869769,0.10839618,115920.0,115910.0,0.65544317]
[1761549870279,0.08981901,115920.0,115910.0,0.65544317]
[1761549871511,0.08981901,115920.0,115910.0,0.17336604]
[1761549871711,0.08981901,115920.0,115910.0,0.65544317]
[1761549872040,0.08981901,115920.0,115910.0,0.66244317]
[1761549872282,0.09081901,115920.0,115910.0,0.66244317]
[1761549873502,0.09081901,115920.0,115910.0,1.2972003]
[1761549873808,0.09081901,115920.0,115910.0,0.81512317]
[1761549874368,0.09081901,115920.0,115910.0,0.8254991]
[1761549874600,0.09081901,115920.0,115910.0,0.81512317]
[1761549879308,0.09081901,115920.0,115910.0,1.2972003]
[1761549880399,0.001,115920.0,115910.0,1.2972003]
[1761549882107,0.26200419,115960.0,115940.0,0.17248858]
[1761549882290,0.08981901,115950.0,115940.0,0.17248858]
[1761549882445,0.35212616,115950.0,115940.0,0.17248858]
[1761549883320,0.17963802,115950.0,115940.0,0.17248858]
[1761549883527,0.35212616,115950.0,115940.0,0.17248858]
[1761549884415,0.35212616,115950.0,115940.0,0.17348858]
[1761549884827,0.17963802,115950.0,115940.0,0.17248858]
[1761549884975,0.09281901,115950.0,115940.0,0.17248858]
[1761549886009,0.26530715,115950.0,115940.0,0.17248858]
[1761549887288,0.74738428,115950.0,115930.0,0.18111866]
[1761549887441,0.01725487,115940.0,115930.0,0.18111866]
[1761549887757,0.10707388,115940.0,115930.0,0.18111866]
[1761549887976,0.29439095,115940.0,115930.0,0.18111866]
[1761549888170,0.27713608,115940.0,115930.0,0.18152778]
[1761549888328,0.91181321,115940.0,115930.0,0.00040912]
[1761549888538,1.00315549,115940.0,115930.0,0.00040912]
[1761549888715,1.00315549,115940.0,115930.0,0.00140912]
[1761549889490,1.00289668,115940.0,115930.0,0.00140912]
[1761549890083,0.52181955,115940.0,115930.0,0.00140912]
[1761549890290,1.00389668,115940.0,115930.0,0.00140912]
[1761549890686,1.02114668,115940.0,115930.0,0.00140912]
[1761549890899,1.00289668,115940.0,115930.0,0.00140912]
[1761549891030,1.02145198,115940.0,115930.0,0.00140912]
[1761549891231,1.02245198,115940.0,115930.0,0.00040912]
[1761549891693,1.36345198,115940.0,115930.0,0.00040912]
[1761549893028,1.36445198,115940.0,115930.0,0.00040912]
[1761549893991,1.88377909,115940.0,115930.0,0.00040912]
[1761549894188,1.90700591,115940.0,115930.0,0.00040912]
[1761549894395,1.9726581,115940.0,115930.0,0.00040912]
[1761549894795,1.9706581,115940.0,115930.0,0.00040912]
[1761549895295,1.9806581,115940.0,115930.0,0.00040912]
[1761549896120,1.9796581,115940.0,115930.0,0.00040912]
[1761549896321,1.9816581,115940.0,115930.0,0.00040912]
[1761549897357,1.97165811,115940.0,115930.0,0.00040912]
[1761549897597,1.9816581,115940.0,115930.0,0.00040912]
[1761549898829,2.2520542,115940.0,115930.0,1e-08]
[1761549899784,0.89134752,115940.0,115930.0,1e-08]
[1761549899987,1.26910893,115940.0,115930.0,1e-08]
[1761549900199,1.3152912,115940.0,115930.0,1e-08]
[1761549900413,1.30529121,115940.0,115930.0,1e-08]
[1761549900639,1.3152912,115940.0,115930.0,1e-08]
[1761549900822,1.40511021,115940.0,115930.0,1e-08]
[1761549901664,1.39511022,115940.0,115930.0,1e-08]
[1761549902196,0.9663798,115940.0,115930.0,1e-08]
[1761549902342,0.4737798,115940.0,115930.0,1e-08]
[1761549902555,0.6263798,115940.0,115930.0,1e-08]
[1761549902942,1.05511022,115940.0,115930.0,1e-08]
[1761549903131,1.05311022,115940.0,115930.0,1e-08]
[1761549903331,1.05511022,115940.0,115930.0,1e-08]
[1761549903730,0.6163798,115940.0,115930.0,1e-08]
[1761549904133,0.36040549,115940.0,115930.0,1e-08]
[1761549904340,0.36040549,115940.0,115930.0,0.1725179]
[1761549904341,0.47682321,115940.0,115930.0,0.1725179]
[1761549904747,0.007,115940.0,115930.0,0.1725179]
[1761549904948,0.002,115940.0,115930.0,1.16107106]
[1761549905214,0.00077103,115970.0,115960.0,0.51247326]
[1761549905409,0.09059004,115970.0,115960.0,1.14377464]
[1761549905609,0.00077103,115970.0,115960.0,1.14377464]
[1761549906812,0.00077103,115970.0,115960.0,1.29637464]
[1761549907033,0.00077103,115970.0,115960.0,1.30682026]
[1761549907927,0.00077103,115970.0,115960.0,1.31482026]
[1761549914998,0.00077103,115970.0,115960.0,0.67299326]
[1761549916054,0.00077103,115970.0,115960.0,0.52047326]
[1761549916700,0.00077103,115970.0,115960.0,0.67299326]
[1761549918463,0.09059004,115970.0,115960.0,0.52047326]
[1761549929418,0.26304843,115970.0,115960.0,0.008]
[1761549929760,0.89434981,115970.0,115960.0,0.008]
[1761549929947,0.26304843,115970.0,115960.0,0.008]
[1761549930761,0.17247326,115960.0,115950.0,0.324967]
[1761549930963,0.08981901,115960.0,115950.0,0.324967]
[1761549931164,0.09079466,115960.0,115950.0,0.324967]
[1761549931643,0.26326792,115960.0,115950.0,0.17248814]
[1761549931875,0.09079466,115960.0,115950.0,0.17248814]
[1761549932048,0.26326792,115960.0,115950.0,0.17248814]
[1761549932268,0.27450579,115960.0,115950.0,0.17248814]
[1761549932506,0.27550579,115960.0,115940.0,0.33358387]
[1761549932678,0.08981901,115950.0,115940.0,0.67358387]
[1761549934305,0.09181901,115950.0,115940.0,0.67358387]
[1761549935631,0.26430715,115950.0,115940.0,0.32498301]
[1761549935881,0.26430715,115950.0,115940.0,0.17250301]
[1761549936258,0.26430715,115950.0,115930.0,0.66499789]
[1761549937233,0.26230715,115950.0,115930.0,0.66499789]
[1761549937445,0.26230715,115950.0,115930.0,0.66599789]
[1761549937983,0.26307834,115950.0,115930.0,0.66599789]
[1761549938173,0.26307834,115950.0,115940.0,0.17250301]
[1761549939717,0.26507834,115950.0,115940.0,0.17250301]
[1761549941890,0.0925902,115950.0,115940.0,0.17250301]
[1761549942997,0.26507834,115950.0,115940.0,0.17250301]
[1761549944743,0.0925902,115950.0,115940.0,1.14380439]
[1761549945154,0.0925902,115950.0,115940.0,0.51250301]
[1761549945467,0.0925902,115950.0,115940.0,0.66502301]
[1761549945988,0.0925902,115950.0,115940.0,0.51250301]
[1761549946191,0.0925902,115950.0,115940.0,0.66502301]
[1761549946349,0.0925902,115950.0,115940.0,0.32502301]
[1761549947179,0.0925902,115950.0,115940.0,0.75331696]
[1761549947566,0.0925902,115950.0,115940.0,0.32502301]
[1761549948208,0.0925902,115950.0,115940.0,0.75331696]
[1761549950070,0.0925902,115950.0,115940.0,1.09331696]
[1761549950441,0.00277119,115950.0,115940.0,1.09331696]
[1761549955171,0.00077119,115950.0,115940.0,1.09331696]
[1761549955594,0.00077119,115950.0,115940.0,1.09431696]
[1761549959900,0.00077119,115950.0,115940.0,1.14773921]
[1761549960597,0.00077119,115950.0,115940.0,0.17350301]
[1761549960826,0.00077119,115950.0,115940.0,0.32598301]
[1761549961346,0.00077119,115950.0,115940.0,0.80769921]
[1761549961507,0.00077119,115950.0,115940.0,1.14769921]
[1761549961723,0.0905902,115950.0,115940.0,0.66598301]
[1761549961917,0.0905902,115950.0,115940.0,0.66498301]
[1761549962087,0.0925902,115950.0,115940.0,0.66498301]
[1761549962890,0.0925902,115950.0,115940.0,1.14669921]
[1761549963442,0.0925902,115950.0,115940.0,0.66498301]
[1761549963645,0.0925902,115950.0,115940.0,1.14669921]
[1761549964413,0.82147255,115950.0,115930.0,0.17251789]
[1761549964654,0.74403822,115940.0,115930.0,0.17251789]
[1761549965170,0.26232202,115940.0,115930.0,0.17251789]
[1761549965726,0.26232202,115940.0,115930.0,0.17351789]
[1761549966720,0.26232202,115940.0,115920.0,0.18136128]
[1761549966721,0.21135047,115940.0,115920.0,0.18136128]
[1761549966859,0.17251789,115930.0,115920.0,0.52136128]
[1761549967076,0.08981901,115930.0,115920.0,0.52136128]
[1761549967477,0.27959177,115930.0,115920.0,0.0002046]
[1761549967835,0.7440531,115930.0,115920.0,0.0002046]
[1761549968444,0.78023538,115930.0,115920.0,0.0002046]
[1761549968587,0.83539538,115930.0,115920.0,0.0002046]
[1761549968793,0.83739538,115930.0,115920.0,0.0002046]
[1761549968994,0.83839538,115930.0,115920.0,0.0002046]
[1761549969190,0.83639538,115930.0,115920.0,0.0002046]
[1761549969427,0.92621439,115930.0,115920.0,0.0002046]
[1761549969778,0.92621439,115930.0,115920.0,1.47616978]
[1761549969779,0.007,115930.0,115920.0,1.47616978]
[1761549970006,0.008,115930.0,115920.0,1.47616978]
[1761549970230,0.008,115930.0,115920.0,0.99445358]
[1761549970433,0.008,115930.0,115920.0,1.47616978]
[1761549971335,0.007,115930.0,115920.0,1.47616978]
[1761549971542,0.00077119,115950.0,115940.0,0.17250301]
[1761549971698,0.0905902,115950.0,115940.0,0.98596556]
[1761549971904,0.0905902,115950.0,115940.0,0.96871526]
[1761549973093,0.0945902,115950.0,115940.0,0.96871526]
[1761549973302,0.0955902,115950.0,115940.0,0.96871526]
[1761549976505,0.0955902,115950.0,115940.0,0.51250301]
[1761549986394,0.32739168,115950.0,115930.0,0.1725052]
[1761549986594,0.17825933,115950.0,115940.0,0.17250301]
[1761549987814,0.17325933,115950.0,115940.0,0.17250301]
[1761549988019,0.17325933,115950.0,115930.0,0.3249852]
[1761549988330,0.17525933,115950.0,115930.0,0.3249852]
[1761549988530,0.17325933,115950.0,115940.0,0.17250301]
[1761549988949,0.17725933,115950.0,115940.0,0.17250301]
[1761549989116,0.17425933,115950.0,115940.0,0.17250301]
[1761549989542,0.17625933,115950.0,115940.0,0.17250301]
[1761549989744,0.17425933,115950.0,115940.0,0.17250301]
[1761549989955,0.17425933,115950.0,115930.0,0.3249852]
[1761549990153,0.17425933,115950.0,115940.0,0.17250301]
[1761549990563,0.1915142,115950.0,115940.0,0.17250301]
[1761549990757,0.17250301,115940.0,115930.0,0.1725052]
[1761549991011,0.26232202,115940.0,115930.0,0.5125052]
[1761549991194,0.08981901,115940.0,115930.0,0.5125052]
[1761549992410,0.09181901,115940.0,115930.0,0.5125052]
[1761549992849,0.26432202,115940.0,115930.0,0.5125052]
[1761549993034,0.09181901,115940.0,115930.0,0.5125052]
[1761549993975,0.09181901,115940.0,115930.0,0.99441868]
[1761549998892,0.26432202,115940.0,115930.0,0.99441868]
[1761549999469,0.09181901,115940.0,115930.0,0.99441868]
[1761550007716,0.29341744,115940.0,115920.0,0.33384401]
[1761550007922,0.29341744,115940.0,115930.0,0.65443137]
[1761550007923,0.17450301,115940.0,115930.0,0.65443137]
[1761550008146,0.002,115940.0,115930.0,0.65443137]
[1761550008354,0.17450301,115940.0,115930.0,0.65443137]
[1761550008726,0.17250301,115940.0,115930.0,0.65443137]
[1761550010450,0.17250301,115940.0,115930.0,0.17251789]
[1761550010658,0.17450301,115940.0,115930.0,0.65443137]
[1761550013641,0.17450301,115940.0,115930.0,0.64983137]
[1761550013901,0.26432202,115940.0,115930.0,0.64983137]
[1761550014057,0.41680202,115940.0,115930.0,0.64983137]
[1761550020293,0.41680202,115940.0,115930.0,0.47731348]
[1761550020782,0.41680202,115940.0,115930.0,0.64983137]
[1761550021445,0.47839574,115940.0,115930.0,0.64983137]
[1761550021801,0.47839574,115940.0,115930.0,0.60084271]
[1761550022067,0.24429901,115940.0,115930.0,0.60084271]
[1761550022205,0.41680202,115940.0,115930.0,0.60084271]
[1761550024165,0.41680202,115940.0,115930.0,0.42832482]
[1761550025866,0.41680202,115940.0,115920.0,0.33384401]
[1761550026096,0.08981901,115930.0,115920.0,0.67384401]
[1761550027273,0.08981901,115930.0,115920.0,1.10316883]
[1761550039301,0.45826402,115930.0,115920.0,0.0012046]
[1761550039499,0.44100915,115930.0,115920.0,0.0012046]
[1761550039705,0.44100915,115930.0,115920.0,0.17373738]
[1761550039969,0.44100915,115930.0,115920.0,0.0012046]
[1761550040107,0.44100915,115930.0,115920.0,0.0002046]
[1761550040503,0.44600915,115930.0,115920.0,0.0002046]
[1761550040701,0.4157769,115930.0,115920.0,0.0002046]
[1761550041124,0.4217769,115930.0,115920.0,0.0002046]
[1761550041417,0.4227769,115930.0,115920.0,0.0002046]
[1761550051546,0.09781901,115930.0,115920.0,0.61831547]
[1761550051748,0.09781901,115930.0,115920.0,0.6010622]
[1761550052081,0.2703369,115930.0,115920.0,0.6010622]
[1761550052451,0.32986494,115930.0,115920.0,0.17273738]
[1761550052653,0.32986494,115930.0,115920.0,0.18999065]
[1761550052852,0.2703369,115930.0,115920.0,0.18999065]
[1761550053462,0.2703369,115930.0,115920.0,0.0002046]
[1761550053667,0.2703369,115930.0,115920.0,0.17273738]
[1761550053844,0.2703369,115930.0,115920.0,0.0002046]
[1761550054062,0.30659852,115930.0,115920.0,0.0002046]
[1761550054487,0.30659852,115930.0,115920.0,0.17273738]
[1761550056722,0.30659852,115930.0,115920.0,0.0002046]
[1761550060695,0.77110562,115930.0,115920.0,0.0002046]
[1761550060845,0.78969835,115930.0,115920.0,0.0002046]
[1761550061461,1.12969835,115930.0,115920.0,0.0002046]
[1761550063849,1.68034316,115930.0,115920.0,0.0002046]
[1761550064160,1.28466604,115930.0,115920.0,0.0002046]
[1761550064568,0.83308474,115930.0,115920.0,0.0002046]
[1761550064738,1.26140956,115930.0,115920.0,0.0002046]
[1761550064977,1.26040956,115930.0,115920.0,0.0002046]
[1761550065185,1.26240956,115930.0,115920.0,0.0002046]
[1761550065575,1.27240955,115930.0,115920.0,0.0002046]
[1761550065739,1.26540955,115930.0,115920.0,0.0002046]
[1761550066167,1.27640955,115930.0,115920.0,0.0002046]
[1761550066981,1.33990726,115930.0,115920.0,1e-08]
[1761550067646,1.32990727,115930.0,115920.0,1e-08]
[1761550067821,1.33990726,115930.0,115920.0,1e-08]
[1761550068349,1.35386905,115930.0,115920.0,1e-08]
[1761550068545,1.25347605,115930.0,115920.0,1e-08]
[1761550069673,1.43522726,115930.0,115920.0,1e-08]
[1761550070055,1.42522727,115930.0,115920.0,1e-08]
[1761550070462,0.84446245,115930.0,115920.0,1e-08]
[1761550070665,1.42522727,115930.0,115920.0,1e-08]
[1761550071527,2.19197027,115930.0,115920.0,1e-08]
[1761550071762,2.18197028,115930.0,115920.0,1e-08]
[1761550071966,1.89209027,115930.0,115920.0,1e-08]
[1761550073271,1.88209028,115930.0,115920.0,1e-08]
[1761550073487,1.89209027,115930.0,115920.0,1e-08]
[1761550075731,1.90934027,115930.0,115920.0,1e-08]
[1761550076468,1.89934028,115930.0,115920.0,1e-08]
[1761550076668,1.54605027,115930.0,115920.0,1e-08]
[1761550076923,1.63604027,115930.0,115920.0,1e-08]
[1761550079123,2.09762156,115930.0,115920.0,1e-08]
[1761550079299,0.17260369,115880.0,115870.0,0.17260723]
[1761550079621,0.4148627,115880.0,115870.0,0.60093205]
[1761550079784,0.4148627,115880.0,115870.0,0.42832482]
[1761550080190,0.4148627,115880.0,115870.0,0.17260723]
[1761550080398,0.4148627,115880.0,115860.0,0.6095751]
[1761550080599,0.08981901,115870.0,115860.0,0.6095751]
[1761550081788,0.08981901,115870.0,115860.0,0.66366042]
[1761550082513,0.08981901,115870.0,115860.0,0.67166042]
[1761550085367,0.08981901,115870.0,115860.0,0.67288868]
[1761550086299,0.08981901,115870.0,115860.0,0.69877979]
[1761550087292,0.08981901,115870.0,115860.0,1.18118993]
[1761550087701,0.08981901,115870.0,115860.0,0.69877979]
[1761550088141,0.08981901,115870.0,115860.0,1.18118993]
[1761550088469,0.08981901,115870.0,115860.0,0.21636965]
[1761550088651,0.08981901,115870.0,115860.0,1.18118993]
[1761550089303,0.08981901,115870.0,115860.0,0.69877979]
[1761550090225,0.33896644,115910.0,115860.0,1.18118993]
[1761550090430,0.41478452,115900.0,115870.0,0.35087831]
[1761550090636,0.43335597,115900.0,115890.0,0.48241014]
[1761550090999,0.43335597,115900.0,115890.0,0.17257744]
[1761550091000,0.43335301,115900.0,115890.0,0.17257744]
[1761550091195,0.41478156,115900.0,115890.0,0.65498758]
[1761550092064,0.41478156,115900.0,115890.0,1.13739772]
[1761550092065,0.24221901,115900.0,115890.0,1.13739772]
[1761550092277,0.41478156,115900.0,115890.0,0.65498758]
[1761550092614,0.48300743,115900.0,115890.0,0.68087364]
[1761550092823,0.02325648,115920.0,115910.0,0.17254766]
[1761550092989,0.08981901,115920.0,115910.0,0.67221256]
[1761550093190,0.08981901,115920.0,115910.0,0.6549578]
[1761550093514,0.08981901,115920.0,115910.0,0.68083828]
[1761550093716,0.09981901,115920.0,115910.0,0.68083828]
[1761550094113,0.09981901,115920.0,115910.0,0.83323828]
[1761550094680,0.10381901,115920.0,115910.0,0.83323828]
[1761550094886,0.10081901,115920.0,115910.0,0.83323828]
[1761550095080,0.10081901,115920.0,115910.0,0.68083828]
[1761550095264,0.13233577,115920.0,115910.0,0.83323828]
[1761550095711,0.03174038,115940.0,115920.0,0.17253278]
[1761550095879,0.03174038,115940.0,115930.0,1.70218995]
[1761550095880,0.00077128,115940.0,115930.0,1.70218995]
[1761550096087,0.00077128,115940.0,115930.0,1.68493817]
[1761550096288,0.00077128,115940.0,115930.0,1.20252803]
[1761550096662,0.00077128,115940.0,115930.0,1.71080781]
[1761550096853,1e-08,115940.0,115930.0,1.71080781]
[1761550097072,1e-08,115940.0,115930.0,1.84680909]
[1761550097273,1e-08,115940.0,115930.0,1.82093945]
[1761550097698,1e-08,115940.0,115930.0,1.82193945]
[1761550098246,1e-08,115940.0,115930.0,1.84756987]
[1761550099443,1e-08,115940.0,115930.0,1.84656987]
[1761550099829,1e-08,115940.0,115930.0,1.84756987]
[1761550100611,1e-08,115940.0,115930.0,1.89378912]
[1761550102322,1e-08,115940.0,115930.0,1.84756987]
[1761550106812,1e-08,115940.0,115930.0,1.35515974]
[1761550107169,1e-08,115940.0,115930.0,1.31901746]
[1761550111931,1e-08,115940.0,115930.0,0.19914831]
[1761550112125,1e-08,115940.0,115930.0,0.83399845]
[1761550112693,1e-08,115940.0,115930.0,1.17399845]
[1761550112855,1e-08,115940.0,115930.0,1.17299845]
[1761550113054,1e-08,115940.0,115930.0,1.17399845]
[1761550113695,1e-08,115940.0,115930.0,1.15699845]
[1761550113995,1e-08,115940.0,115930.0,1.17299845]
[1761550114350,1e-08,115940.0,115930.0,1.14736803]
[1761550114566,0.08981902,115940.0,115930.0,0.18551789]
[1761550114958,0.08981902,115940.0,115930.0,0.52651789]
[1761550115429,0.26232203,115940.0,115930.0,0.18651789]
[1761550115633,0.26232203,115940.0,115930.0,0.354]
[1761550115800,0.26232203,115940.0,115930.0,0.52651789]
[1761550116575,0.26232203,115940.0,115930.0,0.52551789]
[1761550116728,0.26232203,115940.0,115930.0,0.51351789]
[1761550117097,0.26232203,115940.0,115930.0,0.52351789]
[1761550117713,0.08981902,115940.0,115930.0,0.52351789]
[1761550118531,0.08981902,115940.0,115930.0,0.52251789]
[1761550118962,0.08981902,115940.0,115930.0,0.52351789]
[1761550119386,0.74473217,115940.0,115930.0,0.011]
[1761550119553,0.26232203,115940.0,115930.0,0.011]
[1761550120251,0.26232203,115940.0,115920.0,0.17253278]
[1761550120649,0.88610704,115930.0,115910.0,0.52137966]
[1761550120852,0.17253278,115920.0,115910.0,0.52137966]
[1761550121040,0.08981901,115920.0,115910.0,0.51275228]
[1761550121240,0.08181901,115920.0,115910.0,0.51275228]
[1761550121995,0.08181901,115920.0,115910.0,0.52275228]
[1761550123456,0.08181901,115920.0,115910.0,0.51275228]
[1761550124071,0.08181901,115920.0,115910.0,0.51475228]
[1761550124428,0.08181901,115920.0,115910.0,0.99716242]
[1761550124623,0.08181901,115920.0,115910.0,0.99516242]
[1761550125110,0.08781901,115920.0,115910.0,0.99616242]
[1761550125436,0.08781901,115920.0,115910.0,0.51375228]
[1761550125637,0.08781901,115920.0,115910.0,0.99616242]
[1761550126939,0.26035179,115920.0,115910.0,0.17375228]
[1761550129810,0.50960179,115920.0,115910.0,0.67341718]
[1761550130010,0.50960179,115920.0,115910.0,0.17375228]
[1761550130228,0.50960179,115920.0,115910.0,0.65616242]
[1761550130431,0.50960179,115920.0,115910.0,0.00120462]
[1761550130674,1.47442207,115920.0,115910.0,0.00120462]
[1761550131119,1.04717193,115920.0,115910.0,0.00120462]
[1761550133892,1.52958207,115920.0,115910.0,0.00120462]
[1761550135375,1.56576435,115920.0,115910.0,0.00120462]
[1761550136284,1.08335421,115920.0,115910.0,0.00120462]
[1761550136782,1.14806693,115920.0,115910.0,0.00120462]
[1761550138151,1.72029608,115920.0,115910.0,0.00120462]
[1761550139451,1.71429608,115920.0,115910.0,0.00020462]
[1761550139663,1.71429608,115920.0,115910.0,0.00220462]
[1761550139844,1.73229608,115920.0,115910.0,0.00220462]
[1761550140802,2.07229608,115920.0,115910.0,0.00220462]
[1761550143860,1.9650912,115920.0,115910.0,0.00220462]
[1761550145306,1.97509119,115920.0,115910.0,0.00220462]
[1761550146115,0.17261181,115870.0,115850.0,0.80373094]
[1761550146253,0.41479082,115870.0,115860.0,0.17262213]
[1761550148274,0.41479082,115870.0,115850.0,0.80373094]
[1761550148475,0.26244114,115860.0,115850.0,0.46373094]
[1761550148700,0.24544114,115860.0,115850.0,0.46373094]
[1761550148863,0.24444114,115860.0,115850.0,0.46373094]
[1761550149710,0.24444114,115860.0,115850.0,0.46473094]
[1761550149910,0.24844114,115860.0,115850.0,0.48473094]
[1761550150701,0.24444114,115860.0,115850.0,0.46473094]
[1761550150904,0.24444114,115860.0,115850.0,0.46373094]
[1761550151355,0.07181901,115860.0,115850.0,0.46473094]
[1761550151704,0.07181901,115860.0,115850.0,0.46673092]
[1761550151899,0.24444114,115860.0,115850.0,0.47673092]
[1761550152154,0.24844114,115860.0,115850.0,0.47673092]
[1761550152712,0.24844114,115860.0,115850.0,0.46819582]
[1761550154747,0.24844114,115860.0,115850.0,0.29555879]
[1761550154942,0.24844114,115860.0,115850.0,0.46819582]
[1761550156354,0.24844114,115860.0,115850.0,0.29555879]
[1761550157050,0.24844114,115860.0,115850.0,0.46819582]
[1761550157451,0.24844114,115860.0,115850.0,0.29555879]
[1761550158156,0.24844114,115860.0,115850.0,0.46819582]
[1761550159549,0.24844114,115860.0,115850.0,0.29555879]
[1761550161564,0.24844114,115860.0,115850.0,0.46819582]
[1761550161782,0.07581901,115860.0,115850.0,0.46819582]
[1761550161979,0.22821901,115860.0,115850.0,0.89700352]
[1761550162199,0.40084114,115860.0,115850.0,0.46819582]
[1761550162356,0.40084114,115860.0,115850.0,0.29555879]
[1761550191807,1.30565012,115860.0,115850.0,0.29555879]
[1761550191966,1.32423832,115860.0,115850.0,0.29555879]
[1761550192566,1.32423832,115860.0,115850.0,0.29455879]
[1761550192777,1.32523832,115860.0,115850.0,0.29455879]
[1761550192949,1.32123832,115860.0,115850.0,0.28455879]
[1761550193488,1.34323832,115860.0,115850.0,0.28455879]
[1761550195724,1.33323833,115860.0,115850.0,0.28455879]
[1761550196041,1.34323832,115860.0,115850.0,0.28455879]
[1761550196408,1.33323833,115860.0,115850.0,0.28455879]
[1761550196613,1.34323832,115860.0,115850.0,0.28455879]
[1761550197495,0.66221162,115860.0,115850.0,0.28455879]
[1761550197630,1.28003112,115860.0,115850.0,0.28455879]
[1761550198212,1.33793972,115860.0,115850.0,0.28455879]
[1761550201636,0.33834591,115860.0,115850.0,0.28455879]
[1761550201842,0.52981186,115860.0,115850.0,0.28455879]
[1761550202053,0.63576892,115860.0,115850.0,0.28455879]
[1761550202683,1.06457662,115860.0,115850.0,0.28455879]
[1761550203183,0.63576892,115860.0,115850.0,0.28455879]
[1761550203581,1.08776273,115860.0,115850.0,0.28455879]
[1761550205772,1.14174902,115860.0,115850.0,0.28455879]
[1761550206396,1.62454301,115860.0,115850.0,0.28455879]
[1761550206722,0.65895503,115860.0,115850.0,0.28455879]